[Event "WJCC U20 Girls 2019"]
[Site "New Delhi"]
[Date "2019.10.17"]
[Round "4.27"]
[White "Meghna, C H"]
[Black "Priyanka, Kumari"]
[Result "0-1"]
[ECO "B23"]
[WhiteElo "1956"]
[BlackElo "1921"]
[Annotator "NA"]
[PlyCount "76"]
[EventDate "2019.10.15"]
[EventType "swiss"]
[EventCountry "IND"]
[SourceTitle "playchess.com"]
[Source "ChessBase"]
[SourceQuality "1"]
[TimeControl "40/5400+30:1800+30"]

1. e4 {[%emt 0:00:00]} c5 {[%emt 0:00:00]} 2. Nc3 {[%emt 0:00:00]} a6 {[%emt 0:00:20]} 3. g3 {[%emt 0:00:11]} b5 {[%emt 0:01:17]} 4. Bg2 {[%emt 0:00:08]} Bb7 {[%emt 0:00:25]} 5. d3 {[%emt 0:00:34]} e6 {[%emt 0:00:48]} 6. Nh3 {[%emt 0:00:15]} b4 {[%emt 0:06:04]} 7. Ne2 {[%emt 0:00:24]} d5 {[%emt 0:01:40]} 8. O-O {[%emt 0:00:09]} Nf6 {[%emt 0:03:37]} 9. e5 {[%emt 0:00:37]} Nfd7 {[%emt 0:00:48]} 10. f4 {[%emt 0:00:13]} Nc6 {[%emt 0:01:34]} 11. f5 {[%emt 0:15:48]} exf5 {[%emt 0:14:21]} 12. Nef4 {[%emt 0:15:50]} Ndxe5 {[%emt 0:10:08]} 13. Nxd5 {[%emt 0:01:33]} Ne7 {[%emt 0:06:41]} 14. Nf6+ {[%emt 0:11:01]} gxf6 {[%emt 0:00:19]} 15. Bxb7 {[%emt 0:00:03]} Ra7 {[%emt 0:01:48]} 16. Bg2 {[%emt 0:00:12]} Qd4+ {[%emt 0:05:35]} 17. Kh1 {[%emt 0:02:34]} h5 {[%emt 0:02:00]} 18. Rf4 {[%emt 0:21:38]} Qd7 {[%emt 0:08:30]} 19. Qg1 {[%emt 0:17:19]} N7g6 {[%emt 0:06:29]} 20. Be3 {[%emt 0:00:33]} Rc7 {[%emt 0:03:01]} 21. Re1 {[%emt 0:01:10]} h4 {[%emt 0:03:05]} 22. d4 {[%emt 0:01:44]} cxd4 {[%emt 0:01:59]} 23. Rxd4 {[%emt 0:00:18]} Qc8 {[%emt 0:00:31]} 24. Red1 {[%emt 0:03:32]} Be7 {[%emt 0:01:08]} 25. Qe1 {[%emt 0:01:16]} hxg3 {[%emt 0:05:13]} 26. Qxg3 {[%emt 0:00:25]} Rxc2 {[%emt 0:00:54]} 27. Kg1 {[%emt 0:04:59]} Ng4 {[%emt 0:03:30]} 28. Bf4 {[%emt 0:00:58]} Bc5 {[%emt 0:03:27]} 29. Bd6 {[%emt 0:00:28]} Bxd4+ {[%emt 0:01:43]} 30. Rxd4 {[%emt 0:00:01]} Rc1+ {[%emt 0:02:18]} 31. Bf1 {[%emt 0:00:02]} Qe6 {[%emt 0:01:53]} 32. Rxb4 {[%emt 0:01:22]} Qe3+ {[%emt 0:01:04]} 33. Nf2 {[%emt 0:00:35]} Qxg3+ {[%emt 0:00:54]} 34. Bxg3 {[%emt 0:00:02]} Ne3 {[%emt 0:00:25]} 35. Rb8+ {[%emt 0:00:04]} Kd7 {[%emt 0:00:17]} 36. Rb7+ {[%emt 0:00:01]} Ke8 {[%emt 0:01:05]} 37. Rb8+ {[%emt 0:01:09]} Ke7 {[%emt 0:00:09]} 38. Rb7+ {[%emt 0:00:11]} Kf8 {[%emt 0:00:15]} 0-1

[Event "WJCC U20 Girls 2019"]
[Site "New Delhi"]
[Date "2019.10.17"]
[Round "4.28"]
[White "Sapale Saloni"]
[Black "Lakshmi C"]
[Result "1/2-1/2"]
[ECO "B33"]
[WhiteElo "2142"]
[BlackElo "1859"]
[Annotator "NA"]
[PlyCount "75"]
[EventDate "2019.10.15"]
[EventType "swiss"]
[EventCountry "IND"]
[SourceTitle "playchess.com"]
[Source "ChessBase"]
[SourceQuality "1"]
[TimeControl "40/5400+30:1800+30"]

1. e4 {[%emt 0:00:00]} c5 {[%emt 0:00:00]} 2. Nf3 {[%emt 0:00:00]} Nc6 {[%emt 0:00:00]} 3. d4 {[%emt 0:00:09]} cxd4 {[%emt 0:00:06]} 4. Nxd4 {[%emt 0:00:08]} Nf6 {[%emt 0:00:06]} 5. Nc3 {[%emt 0:00:13]} e5 {[%emt 0:00:07]} 6. Ndb5 {[%emt 0:00:25]} d6 {[%emt 0:00:11]} 7. Bg5 {[%emt 0:01:06]} a6 {[%emt 0:00:10]} 8. Na3 {[%emt 0:00:06]} b5 {[%emt 0:00:04]} 9. Nd5 {[%emt 0:00:10]} Be7 {[%emt 0:00:06]} 10. Bxf6 {[%emt 0:00:19]} Bxf6 {[%emt 0:00:09]} 11. c4 {[%emt 0:00:12]} b4 {[%emt 0:00:09]} 12. Nc2 {[%emt 0:00:07]} a5 {[%emt 0:00:05]} 13. g3 {[%emt 0:00:10]} Bg5 {[%emt 0:01:25]} 14. h4 {[%emt 0:03:08]} Bh6 {[%emt 0:00:25]} 15. Bh3 {[%emt 0:00:50]} Bxh3 {[%emt 0:00:40]} 16. Rxh3 {[%emt 0:00:07]} Ne7 {[%emt 0:07:10]} 17. g4 {[%emt 0:16:52]} Nxd5 {[%emt 0:00:54]} 18. Qxd5 {[%emt 0:00:14]} Bf4 {[%emt 0:01:06]} 19. Rd1 {[%emt 0:08:35]} O-O {[%emt 0:01:41]} 20. Qd3 {[%emt 0:01:32]} Qc8 {[%emt 0:06:11]} 21. Qe2 {[%emt 0:00:38]} Ra6 {[%emt 0:01:25]} 22. b3 {[%emt 0:00:51]} h5 {[%emt 0:05:04]} 23. f3 {[%emt 0:07:04]} hxg4 {[%emt 0:00:44]} 24. fxg4 {[%emt 0:00:08]} Qc5 {[%emt 0:00:09]} 25. Kf1 {[%emt 0:03:43]} Qc7 {[%emt 0:26:43]} 26. Ne1 {[%emt 0:04:02]} f6 {[%emt 0:05:03]} 27. Nd3 {[%emt 0:06:27]} Bh6 {[%emt 0:00:43]} 28. Kg2 {[%emt 0:02:43]} Qb7 {[%emt 0:02:50]} 29. Rf3 {[%emt 0:11:24]} g6 {[%emt 0:11:52]} 30. Rdf1 {[%emt 0:01:50]} Bg7 {[%emt 0:02:05]} 31. Nb2 {[%emt 0:05:02]} Raa8 {[%emt 0:02:04]} 32. Kh3 {[%emt 0:05:46]} Rf7 {[%emt 0:01:55]} 33. Qd3 {[%emt 0:00:32]} Raf8 {[%emt 0:01:57]} 34. Qe2 {[%emt 0:07:17]} Qd7 {[%emt 0:03:43]} 35. Qf2 {[%emt 0:02:55]} Qb7 {[%emt 0:04:47]} 36. Qe2 {[%emt 0:01:47]} Qd7 {[%emt 0:00:30]} 37. Qf2 {[%emt 0:00:34]} Qb7 {[%emt 0:00:39]} 38. Qe2 {[%emt 0:01:53]} 1/2-1/2

[Event "WJCC U20 Girls 2019"]
[Site "New Delhi"]
[Date "2019.10.17"]
[Round "4.29"]
[White "Aouachria, Marwa"]
[Black "Nilssen, Ellen Fredericia"]
[Result "1/2-1/2"]
[ECO "C01"]
[WhiteElo "1839"]
[BlackElo "2137"]
[Annotator "NA"]
[PlyCount "61"]
[EventDate "2019.10.15"]
[EventType "swiss"]
[EventCountry "IND"]
[SourceTitle "playchess.com"]
[Source "ChessBase"]
[SourceQuality "1"]
[TimeControl "40/5400+30:1800+30"]

1. e4 {[%emt 0:07:21]} e6 {[%emt 0:00:00]} 2. d4 {[%emt 0:00:40]} d5 {[%emt 0:00:06]} 3. exd5 {[%emt 0:00:07]} exd5 {[%emt 0:00:08]} 4. Nf3 {[%emt 0:00:03]} Bd6 {[%emt 0:00:20]} 5. c4 {[%emt 0:00:08]} Nf6 {[%emt 0:01:22]} 6. Qe2+ {[%emt 0:03:50]} Qe7 {[%emt 0:02:13]} 7. c5 {[%emt 0:05:19]} Qxe2+ {[%emt 0:00:15]} 8. Bxe2 {[%emt 0:00:03]} Be7 {[%emt 0:00:08]} 9. Bf4 {[%emt 0:00:23]} c6 {[%emt 0:01:42]} 10. Nbd2 {[%emt 0:03:09]} b6 {[%emt 0:08:50]} 11. b4 {[%emt 0:00:23]} a5 {[%emt 0:03:12]} 12. Bc7 {[%emt 0:09:59]} Na6 {[%emt 0:09:26]} 13. Bxb6 {[%emt 0:01:46]} Nxb4 {[%emt 0:00:11]} 14. O-O {[%emt 0:00:25]} Nd7 {[%emt 0:05:55]} 15. Bc7 {[%emt 0:05:54]} Bf6 {[%emt 0:00:39]} 16. Rfc1 {[%emt 0:01:27]} O-O {[%emt 0:07:56]} 17. a3 {[%emt 0:01:04]} Na6 {[%emt 0:00:23]} 18. Bd6 {[%emt 0:00:09]} Re8 {[%emt 0:00:09]} 19. Bd3 {[%emt 0:00:31]} Nf8 {[%emt 0:05:19]} 20. Be5 {[%emt 0:16:29]} Bd8 {[%emt 0:05:44]} 21. h3 {[%emt 0:05:02]} Ne6 {[%emt 0:00:21]} 22. Rab1 {[%emt 0:02:17]} Nac7 {[%emt 0:07:35]} 23. Re1 {[%emt 0:08:28]} Ba6 {[%emt 0:02:34]} 24. Bxa6 {[%emt 0:01:47]} Nxa6 {[%emt 0:02:40]} 25. Rb7 {[%emt 0:01:56]} Bc7 {[%emt 0:06:57]} 26. Bxc7 {[%emt 0:00:38]} Naxc7 {[%emt 0:00:11]} 27. a4 {[%emt 0:01:08]} Na6 {[%emt 0:02:56]} 28. Nb3 {[%emt 0:03:33]} Nb4 {[%emt 0:00:07]} 29. Rd1 {[%emt 0:00:33]} Na2 {[%emt 0:01:53]} 30. Rd3 {[%emt 0:02:54]} Nf4 {[%emt 0:01:39]} 31. Re3 1/2-1/2

[Event "WJCC U20 Girls 2019"]
[Site "New Delhi"]
[Date "2019.10.17"]
[Round "4.30"]
[White "Harshita Guddanti"]
[Black "Bhagyashree Patil"]
[Result "1-0"]
[ECO "C97"]
[WhiteElo "2123"]
[BlackElo "1802"]
[Annotator "NA"]
[PlyCount "59"]
[EventDate "2019.10.15"]
[EventType "swiss"]
[EventCountry "IND"]
[SourceTitle "playchess.com"]
[Source "ChessBase"]
[SourceQuality "1"]
[TimeControl "40/5400+30:1800+30"]

1. e4 {[%emt 0:00:00]} e5 {[%emt 0:00:00]} 2. Nf3 {[%emt 0:00:02]} Nc6 {[%emt 0:00:00]} 3. Bb5 {[%emt 0:00:07]} a6 {[%emt 0:00:00]} 4. Ba4 {[%emt 0:00:05]} Nf6 {[%emt 0:00:00]} 5. O-O {[%emt 0:00:17]} Be7 {[%emt 0:00:03]} 6. Re1 {[%emt 0:02:50]} b5 {[%emt 0:00:05]} 7. Bb3 {[%emt 0:00:04]} d6 {[%emt 0:00:03]} 8. c3 {[%emt 0:01:52]} O-O {[%emt 0:02:11]} 9. h3 {[%emt 0:00:06]} Na5 {[%emt 0:00:04]} 10. Bc2 {[%emt 0:00:17]} c5 {[%emt 0:00:35]} 11. d4 {[%emt 0:00:34]} Qc7 {[%emt 0:00:07]} 12. Nbd2 {[%emt 0:01:12]} Bd7 {[%emt 0:01:10]} 13. d5 {[%emt 0:03:48]} c4 {[%emt 0:03:07]} 14. Nf1 {[%emt 0:01:49]} Kh8 {[%emt 0:06:23]} 15. Ng3 {[%emt 0:02:30]} g6 {[%emt 0:05:24]} 16. Nh2 {[%emt 0:02:42]} Ng8 {[%emt 0:05:33]} 17. Rf1 {[%emt 0:18:01]} Nb7 {[%emt 0:02:41]} 18. Be3 {[%emt 0:08:16]} Nc5 {[%emt 0:02:03]} 19. f4 {[%emt 0:05:50]} f6 {[%emt 0:01:02]} 20. Nf3 {[%emt 0:05:11]} a5 {[%emt 0:01:21]} 21. f5 {[%emt 0:04:02]} g5 {[%emt 0:01:44]} 22. h4 {[%emt 0:01:16]} gxh4 {[%emt 0:10:06]} 23. Nxh4 {[%emt 0:00:24]} Be8 {[%emt 0:00:28]} 24. Kf2 {[%emt 0:13:04]} Bd8 {[%emt 0:06:19]} 25. Rh1 {[%emt 0:05:58]} Qg7 {[%emt 0:02:31]} 26. Nh5 {[%emt 0:03:14]} Bxh5 {[%emt 0:03:24]} 27. Qxh5 {[%emt 0:00:12]} Ne7 {[%emt 0:01:47]} 28. Bh6 {[%emt 0:03:28]} Qf7 {[%emt 0:00:56]} 29. Ng6+ {[%emt 0:00:46]} hxg6 {[%emt 0:01:26]} 30. Bg7+ {[%emt 0:00:24]} 1-0

[Event "WJCC U20 Girls 2019"]
[Site "New Delhi"]
[Date "2019.10.17"]
[Round "4.31"]
[White "Blazeka, Mihaela"]
[Black "Potluri Supreetha"]
[Result "1/2-1/2"]
[ECO "B54"]
[WhiteElo "2109"]
[BlackElo "1767"]
[Annotator "NA"]
[PlyCount "77"]
[EventDate "2019.10.15"]
[EventType "swiss"]
[EventCountry "IND"]
[SourceTitle "playchess.com"]
[Source "ChessBase"]
[SourceQuality "1"]
[TimeControl "40/5400+30:1800+30"]

1. e4 {[%emt 0:00:00]} c5 {[%emt 0:00:00]} 2. Nf3 {[%emt 0:00:00]} d6 {[%emt 0:00:00]} 3. d4 {[%emt 0:00:00]} cxd4 {[%emt 0:00:00]} 4. Nxd4 {[%emt 0:00:00]} Nf6 {[%emt 0:00:08]} 5. f3 {[%emt 0:00:06]} e5 {[%emt 0:00:31]} 6. Nb3 {[%emt 0:00:05]} d5 {[%emt 0:00:22]} 7. Bg5 {[%emt 0:00:27]} Be6 {[%emt 0:01:46]} 8. exd5 {[%emt 0:06:06]} Qxd5 {[%emt 0:00:17]} 9. Nc3 {[%emt 0:03:37]} Bb4 {[%emt 0:05:19]} 10. Bxf6 {[%emt 0:00:05]} Bxc3+ {[%emt 0:25:58]} 11. bxc3 {[%emt 0:00:15]} Qxd1+ {[%emt 0:00:31]} 12. Rxd1 {[%emt 0:00:23]} gxf6 {[%emt 0:00:07]} 13. Nc5 {[%emt 0:06:44]} b6 {[%emt 0:06:48]} 14. Bb5+ {[%emt 0:16:48]} Ke7 {[%emt 0:02:21]} 15. Nxe6 {[%emt 0:01:41]} fxe6 {[%emt 0:00:09]} 16. O-O {[%emt 0:01:26]} Rc8 {[%emt 0:14:28]} 17. Rd3 {[%emt 0:01:17]} a6 {[%emt 0:09:30]} 18. Ba4 {[%emt 0:00:05]} b5 {[%emt 0:00:15]} 19. Bb3 {[%emt 0:00:06]} Nd7 {[%emt 0:01:11]} 20. f4 {[%emt 0:05:10]} exf4 {[%emt 0:14:12]} 21. Rh3 {[%emt 0:04:25]} Nf8 {[%emt 0:04:40]} 22. Rxf4 {[%emt 0:00:38]} Rc5 {[%emt 0:02:43]} 23. Kf2 {[%emt 0:05:24]} Rac8 {[%emt 0:02:27]} 24. Rff3 {[%emt 0:03:41]} Rg5 {[%emt 0:03:23]} 25. Rh6 {[%emt 0:00:58]} Rg6 {[%emt 0:00:57]} 26. Rh4 {[%emt 0:00:09]} Rg7 {[%emt 0:02:20]} 27. Re4 {[%emt 0:04:08]} Rc5 {[%emt 0:02:25]} 28. a4 {[%emt 0:02:19]} f5 {[%emt 0:00:38]} 29. Rb4 {[%emt 0:02:40]} Ng6 {[%emt 0:00:29]} 30. Rg3 {[%emt 0:00:11]} Kf6 {[%emt 0:00:20]} 31. axb5 {[%emt 0:00:53]} axb5 {[%emt 0:00:20]} 32. c4 {[%emt 0:02:51]} bxc4 {[%emt 0:00:29]} 33. Rxc4 {[%emt 0:00:28]} Rxc4 {[%emt 0:00:31]} 34. Bxc4 {[%emt 0:00:04]} Rc7 {[%emt 0:00:38]} 35. Bb3 {[%emt 0:00:26]} Ne5 {[%emt 0:00:42]} 36. Ke2 {[%emt 0:00:58]} h5 {[%emt 0:00:32]} 37. Rg8 {[%emt 0:00:28]} Nc6 {[%emt 0:00:30]} 38. Rh8 {[%emt 0:06:08]} Kg6 {[%emt 0:00:29]} 39. Rg8+ {[%emt 0:01:16]} 1/2-1/2

[Event "WJCC U20 Girls 2019"]
[Site "New Delhi"]
[Date "2019.10.17"]
[Round "4.33"]
[White "Tanishka Kotia"]
[Black "Jayaweera, Sayuni Gihansa"]
[Result "0-1"]
[ECO "B22"]
[WhiteElo "2090"]
[BlackElo "1788"]
[Annotator "NA"]
[PlyCount "52"]
[EventDate "2019.10.15"]
[EventType "swiss"]
[EventCountry "IND"]
[SourceTitle "playchess.com"]
[Source "ChessBase"]
[SourceQuality "1"]
[TimeControl "40/5400+30:1800+30"]

1. e4 {[%emt 0:00:00]} c5 {[%emt 0:00:00]} 2. c3 {[%emt 0:00:00]} g6 {[%emt 0:00:33]} 3. d4 {[%emt 0:00:00]} cxd4 {[%emt 0:00:08]} 4. cxd4 {[%emt 0:00:09]} d5 {[%emt 0:00:26]} 5. e5 {[%emt 0:00:58]} Bg7 {[%emt 0:01:01]} 6. Nc3 {[%emt 0:01:18]} a6 {[%emt 0:02:10]} 7. Nf3 {[%emt 0:03:01]} Nc6 {[%emt 0:01:46]} 8. Be3 {[%emt 0:10:01]} Nh6 {[%emt 0:07:33]} 9. Qb3 {[%emt 0:07:58]} e6 {[%emt 0:01:38]} 10. Bd3 {[%emt 0:03:57]} O-O {[%emt 0:03:30]} 11. h3 {[%emt 0:01:33]} f6 {[%emt 0:03:42]} 12. O-O-O {[%emt 0:12:23]} fxe5 {[%emt 0:01:56]} 13. Nxe5 {[%emt 0:01:21]} Nxe5 {[%emt 0:01:25]} 14. dxe5 {[%emt 0:00:02]} b5 {[%emt 0:03:16]} 15. Kb1 {[%emt 0:09:30]} Rb8 {[%emt 0:06:21]} 16. g4 {[%emt 0:05:44]} Qa5 {[%emt 0:03:52]} 17. Be2 {[%emt 0:10:27]} Bb7 {[%emt 0:02:33]} 18. Rhf1 {[%emt 0:05:02]} Bc6 {[%emt 0:01:54]} 19. Bc5 {[%emt 0:02:52]} Rf4 {[%emt 0:02:32]} 20. Bd6 {[%emt 0:00:53]} Re8 {[%emt 0:03:07]} 21. Nxd5 {[%emt 0:11:06]} Bxd5 {[%emt 0:03:08]} 22. Rxd5 {[%emt 0:00:02]} exd5 {[%emt 0:05:13]} 23. Qxd5+ {[%emt 0:00:03]} Kh8 {[%emt 0:00:13]} 24. Qc6 {[%emt 0:04:28]} Rg8 {[%emt 0:04:47]} 25. Rd1 {[%emt 0:02:51]} Rxf2 {[%emt 0:00:33]} 26. Bd3 {[%emt 0:04:24]} Rd2 {[%emt 0:01:07]} 0-1

[Event "WJCC U20 Girls 2019"]
[Site "New Delhi"]
[Date "2019.10.17"]
[Round "4.34"]
[White "Fretel, Liza"]
[Black "Bauyrzhan, Arnash"]
[Result "1-0"]
[ECO "B24"]
[WhiteElo "1877"]
[BlackElo "2075"]
[Annotator "NA"]
[PlyCount "115"]
[EventDate "2019.10.15"]
[EventType "swiss"]
[EventCountry "IND"]
[SourceTitle "playchess.com"]
[Source "ChessBase"]
[SourceQuality "1"]
[TimeControl "40/5400+30:1800+30"]

1. e4 {[%emt 0:00:00]} c5 {[%emt 0:00:00]} 2. Nc3 {[%emt 0:00:00]} Nc6 {[%emt 0:00:15]} 3. Bb5 {[%emt 0:00:31]} Nd4 {[%emt 0:01:22]} 4. Bc4 {[%emt 0:00:13]} g6 {[%emt 0:01:19]} 5. Nge2 {[%emt 0:01:35]} Bg7 {[%emt 0:01:04]} 6. O-O {[%emt 0:00:22]} e6 {[%emt 0:01:16]} 7. Nxd4 {[%emt 0:02:18]} cxd4 {[%emt 0:00:33]} 8. Ne2 {[%emt 0:00:56]} Ne7 {[%emt 0:00:54]} 9. f4 {[%emt 0:01:05]} O-O {[%emt 0:03:01]} 10. d3 {[%emt 0:01:22]} d5 {[%emt 0:03:13]} 11. Bb3 {[%emt 0:00:25]} dxe4 {[%emt 0:03:33]} 12. dxe4 {[%emt 0:00:15]} b6 {[%emt 0:03:09]} 13. Bc4 {[%emt 0:05:34]} Bb7 {[%emt 0:02:57]} 14. Bd3 {[%emt 0:00:12]} Qd7 {[%emt 0:08:36]} 15. f5 {[%emt 0:06:30]} exf5 {[%emt 0:05:25]} 16. exf5 {[%emt 0:00:11]} Qc6 {[%emt 0:02:57]} 17. Rf2 {[%emt 0:10:43]} Rae8 {[%emt 0:03:54]} 18. a4 {[%emt 0:13:30]} a6 {[%emt 0:01:28]} 19. Nf4 {[%emt 0:02:16]} Bc8 {[%emt 0:04:50]} 20. fxg6 {[%emt 0:13:12]} fxg6 {[%emt 0:03:11]} 21. Qf1 {[%emt 0:01:00]} Kh8 {[%emt 0:04:28]} 22. Bd2 {[%emt 0:08:07]} Nd5 {[%emt 0:08:02]} 23. Nxd5 {[%emt 0:02:59]} Rxf2 {[%emt 0:01:05]} 24. Qxf2 {[%emt 0:00:07]} Qxd5 {[%emt 0:00:05]} 25. Re1 {[%emt 0:01:18]} Rf8 {[%emt 0:02:47]} 26. Qe2 {[%emt 0:01:26]} Bf5 {[%emt 0:04:25]} 27. Bb4 {[%emt 0:02:22]} Bxd3 {[%emt 0:03:23]} 28. Qxd3 {[%emt 0:00:28]} Rd8 {[%emt 0:01:54]} 29. b3 {[%emt 0:02:29]} Kg8 {[%emt 0:08:01]} 30. Re4 {[%emt 0:05:23]} Bh6 {[%emt 0:02:52]} 31. Qf3 {[%emt 0:01:18]} Be3+ {[%emt 0:03:47]} 32. Kf1 {[%emt 0:00:44]} Qf5 {[%emt 0:03:10]} 33. Qxf5 {[%emt 0:00:55]} gxf5 {[%emt 0:00:02]} 34. Re6 {[%emt 0:02:17]} Rc8 {[%emt 0:02:16]} 35. c4 {[%emt 0:01:53]} a5 {[%emt 0:03:08]} 36. Be1 {[%emt 0:03:35]} Rd8 {[%emt 0:02:38]} 37. Bh4 {[%emt 0:02:05]} Rd7 {[%emt 0:02:31]} 38. Ke1 {[%emt 0:00:05]} f4 {[%emt 0:00:39]} 39. Rxb6 {[%emt 0:01:25]} d3 {[%emt 0:00:09]} 40. Rb5 {[%emt 0:00:13]} Bd4 {[%emt 0:00:59]} 41. Kd2 {[%emt 0:31:39]} Bc3+ {[%emt 0:02:46]} 42. Kd1 {[%emt 0:00:00]} h6 {[%emt 0:02:32]} 43. Rd5 {[%emt 0:00:00]} Rxd5 {[%emt 0:01:22]} 44. cxd5 {[%emt 0:00:00]} Kf7 {[%emt 0:00:11]} 45. Be1 {[%emt 0:00:00]} Bxe1 {[%emt 0:04:45]} 46. Kxe1 {[%emt 0:00:00]} Ke7 {[%emt 0:00:08]} 47. Kd2 {[%emt 0:00:00]} Kd6 {[%emt 0:00:10]} 48. Kc3 {[%emt 0:00:00]} h5 {[%emt 0:08:02]} 49. Kxd3 {[%emt 0:00:00]} Kxd5 {[%emt 0:01:04]} 50. h3 {[%emt 0:00:00]} h4 {[%emt 0:01:28]} 51. b4 {[%emt 0:00:00]} axb4 {[%emt 0:00:45]} 52. a5 {[%emt 0:00:00]} Kc5 {[%emt 0:00:47]} 53. a6 {[%emt 0:00:00]} Kb6 {[%emt 0:00:05]} 54. Kc4 {[%emt 0:00:00]} Kxa6 {[%emt 0:00:24]} 55. Kxb4 {[%emt 0:00:00]} Kb6 {[%emt 0:00:16]} 56. Kc4 {[%emt 0:00:00]} Kc6 {[%emt 0:00:07]} 57. Kd4 {[%emt 0:00:00]} Kd6 {[%emt 0:00:05]} 58. Ke4 {[%emt 0:00:00] Kd5+} 1-0

[Event "WJCC U20 Girls 2019"]
[Site "New Delhi"]
[Date "2019.10.17"]
[Round "4.35"]
[White "Ortiz Verdezoto, Anahi"]
[Black "Levitan, Ronit"]
[Result "1/2-1/2"]
[ECO "D31"]
[WhiteElo "2055"]
[BlackElo "1893"]
[Annotator "NA RC"]
[PlyCount "163"]
[EventDate "2019.10.15"]
[EventType "swiss"]
[EventCountry "IND"]
[SourceTitle "playchess.com"]
[Source "ChessBase"]
[SourceQuality "1"]
[TimeControl "40/5400+30:1800+30"]

1. d4 d5 {[%emt 0:00:11]} 2. c4 {[%emt 0:00:05]} e6 {[%emt 0:00:06]} 3. Nc3 {[%emt 0:00:06]} Be7 {[%emt 0:00:06]} 4. cxd5 {[%emt 0:00:23]} exd5 {[%emt 0:00:20]} 5. Nf3 {[%emt 0:00:11]} Nf6 {[%emt 0:00:12]} 6. Bg5 {[%emt 0:00:07]} O-O {[%emt 0:00:19]} 7. Qc2 {[%emt 0:01:53]} b6 {[%emt 0:01:12]} 8. e3 {[%emt 0:00:12]} Nbd7 {[%emt 0:00:29]} 9. Bd3 {[%emt 0:00:15]} Bb7 {[%emt 0:00:07]} 10. O-O {[%emt 0:01:26]} c5 {[%emt 0:00:50]} 11. Bf5 {[%emt 0:00:07]} Ne4 {[%emt 0:10:41]} 12. Bxe7 {[%emt 0:06:02]} Qxe7 {[%emt 0:00:11]} 13. dxc5 {[%emt 0:00:55]} Ndxc5 {[%emt 0:02:31]} 14. Rfd1 {[%emt 0:04:48]} Rfd8 {[%emt 0:01:52]} 15. Rac1 {[%emt 0:07:42]} g6 {[%emt 0:01:20]} 16. Bh3 {[%emt 0:00:35]} Nxc3 {[%emt 0:09:10]} 17. Qxc3 {[%emt 0:01:23]} Bc8 {[%emt 0:05:46]} 18. Bxc8 {[%emt 0:00:22]} Raxc8 {[%emt 0:00:17]} 19. h3 {[%emt 0:11:49]} Qb7 {[%emt 0:18:49]} 20. Ne5 {[%emt 0:14:30]} Ne6 {[%emt 0:16:05]} 21. Nc6 {[%emt 0:03:32]} Re8 {[%emt 0:07:35]} 22. b4 {[%emt 0:04:25]} d4 {[%emt 0:04:37]} 23. exd4 {[%emt 0:20:52]} Nf4 {[%emt 0:00:17]} 24. Rd2 {[%emt 0:01:02]} Nd5 {[%emt 0:06:07]} 25. Qc4 {[%emt 0:02:05]} Nxb4 {[%emt 0:01:49]} 26. d5 {[%emt 0:00:56]} a5 {[%emt 0:02:44]} 27. a3 {[%emt 0:01:58]} b5 {[%emt 0:01:07]} 28. Qc3 {[%emt 0:04:31]} Nxc6 {[%emt 0:04:43]} 29. dxc6 {[%emt 0:00:01]} Qb6 {[%emt 0:00:59]} 30. Rd7 {[%emt 0:02:30]} Red8 {[%emt 0:02:54]} 31. Rb7 {[%emt 0:02:32]} Qd4 {[%emt 0:00:39]} 32. Qxd4 {[%emt 0:00:50]} Rxd4 {[%emt 0:00:01]} 33. c7 {[%emt 0:00:01]} Re4 {[%emt 0:00:16]} 34. Rxb5 {[%emt 0:02:11]} Re7 {[%emt 0:00:23]} 35. Rb8 {[%emt 0:04:36]} Ree8 {[%emt 0:00:09]} 36. Rb6 {[%emt 0:00:57]} Kg7 {[%emt 0:01:15]} 37. g4 {[%emt 0:00:10]} Re7 {[%emt 0:00:11]} 38. Rbc6 {[%emt 0:00:08]} g5 {[%emt 0:01:09]} 39. R1c5 {[%emt 0:00:09]} h6 {[%emt 0:00:11]} 40. Kg2 {[%emt 0:00:06]} Kh7 {[%emt 0:00:50]} 41. Kg3 {[%emt 0:30:59]} Kg7 {[%emt 0:31:08]} 42. f3 {[%emt 0:00:59]} f6 {[%emt 0:00:00]} 43. h4 {[%emt 0:00:00]} Kg6 {[%emt 0:00:00]} 44. h5+ {[%emt 0:00:00]} Kg7 {[%emt 0:00:00]} 45. Kf2 {[%emt 0:00:00]} a4 {[%emt 0:00:00]} 46. Rc4 {[%emt 0:00:00]} Kf7 {[%emt 0:00:00]} 47. Rxa4 {[%emt 0:00:00]} Rexc7 {[%emt 0:00:00]} 48. Rxc7+ {[%emt 0:00:00]} Rxc7 {[%emt 0:00:00]} 49. Ra6 {[%emt 0:00:00]} Rc3 {[%emt 0:00:00]} 50. a4 {[%emt 0:00:00]} Ra3 {[%emt 0:00:00]} 51. a5 {[%emt 0:00:00]} Kg7 {[%emt 0:00:00]} 52. Ra7+ {[%emt 0:00:00]} Kf8 {[%emt 0:00:00]} 53. Ra8+ {[%emt 0:00:00]} Kg7 {[%emt 0:00:00]} 54. a6 {[%emt 0:00:00]} Kh7 {[%emt 0:00:00]} 55. a7 {[%emt 0:00:00]} Kg7 {[%emt 0:00:00]} 56. Ke2 {[%emt 0:00:00]} Ra2+ {[%emt 0:00:00]} 57. Kd3 {[%emt 0:00:00]} Ra3+ {[%emt 0:00:00]} 58. Kd4 {[%emt 0:00:00]} Ra4+ {[%emt 0:00:00]} 59. Kd5 {[%emt 0:00:00]} Ra1 {[%emt 0:00:00]} 60. Ke4 {[%emt 0:00:00]} Re1+ {[%emt 0:00:00]} 61. Kd4 {[%emt 0:00:00]} Rd1+ {[%emt 0:00:00]} 62. Kc3 {[%emt 0:00:00]} Ra1 {[%emt 0:00:00]} 63. Kd2 {[%emt 0:00:47]} Ra2+ {[%emt 0:00:00]} 64. Ke3 {[%emt 0:00:23]} Ra1 {[%emt 0:00:00]} 65. Rd8 {[%emt 0:00:17]} Rxa7 {[%emt 0:00:00]} 66. Rd4 {[%emt 0:00:53]} Kf7 {[%emt 0:00:00]} 67. f4 {[%emt 0:00:22]} gxf4+ {[%emt 0:00:00]} 68. Kxf4 {[%emt 0:00:17]} Ke6 {[%emt 0:00:00]} 69. Re4+ {[%emt 0:00:48]} Kf7 {[%emt 0:00:00]} 70. Rb4 {[%emt 0:00:06]} Ke6 {[%emt 0:00:08]} 71. Rb8 {[%emt 0:00:30]} Ra4+ {[%emt 0:01:20]} 72. Kg3 {[%emt 0:00:14]} Kf7 {[%emt 0:01:39]} 73. Rb7+ {[%emt 0:00:01]} Kg8 {[%emt 0:00:07]} 74. Kf3 {[%emt 0:00:15]} Rc4 {[%emt 0:00:19]} 75. Rd7 {[%emt 0:00:38]} Ra4 {[%emt 0:00:17]} 76. Re7 {[%emt 0:00:18]} Rb4 {[%emt 0:00:36]} 77. Re4 {[%emt 0:00:14]} Rb7 {[%emt 0:00:13]} 78. Rd4 {[%emt 0:01:12]} Re7 {[%emt 0:01:16]} 79. Rc4 {[%emt 0:00:34]} Kf7 {[%emt 0:00:28]} 80. Kf4 {[%emt 0:00:03]} Kg7 {[%emt 0:02:24]} 81. Re4 {[%emt 0:01:35]} Ra7 {[%emt 0:00:12]} 82. Kf5 {[%emt 0:00:19]} 1/2-1/2